bitfinex/quotes_SOLUSD_20241113
["timestamp","ask_amount","ask_price","bid_price","bid_amount"]
[1731499318437,0.4769093,207.83,207.75,6.3333]
[1731499319252,0.4769093,207.83,207.76,23.776884]
[1731499319450,0.4769093,207.83,207.78,15.6949]
[1731499320110,0.4769093,207.83,207.77,10.1073]
[1731499320307,0.4769093,207.83,207.79,16.5697]
[1731499320511,12.1212,207.97,207.82,23.776884]
[1731499320512,16.0768748,207.94,207.82,23.776884]
[1731499320707,13.89628227,207.94,207.82,23.776884]
[1731499321120,13.89628227,207.92,207.81,6.1084]
[1731499321323,13.89628227,207.92,207.82,10.1048]
[1731499321324,4.8097,207.91,207.82,10.1048]
[1731499321819,13.89628227,207.9,207.82,10.1048]
[1731499322415,13.89628227,207.88,207.82,7.2177]
[1731499322625,13.89628227,207.84,207.81,6.1084]
[1731499323826,33.89628227,207.82,207.75,6.5422]
[1731499324021,40.9868,207.89,207.75,6.5422]
[1731499324022,13.89628227,207.8,207.75,6.5422]
[1731499324232,13.89628227,207.76,207.75,6.5422]
[1731499324552,24.8134,207.75,207.7,6.5422]
[1731499324732,13.89628227,207.72,207.7,6.5422]
[1731499325723,18.71048227,207.72,207.7,6.5422]
[1731499327044,22.22757293,207.71,207.7,6.5422]
[1731499327427,42.22757293,207.71,207.7,6.5422]
[1731499328243,42.22757293,207.71,207.65,13.6571]
[1731499328747,20.0,207.74,207.65,13.6571]
[1731499329051,22.22757293,207.8,207.67,0.12549]
[1731499329280,22.22757293,207.8,207.66,6.1302]
[1731499330040,22.22757293,207.8,207.67,23.776884]
[1731499330236,20.0,207.79,207.67,23.776884]
[1731499330439,22.22757293,207.82,207.72,23.776884]
[1731499330632,22.22757293,207.84,207.72,23.776884]
[1731499331537,27.03857293,207.86,207.74,23.776884]
[1731499332125,22.22757293,207.84,207.74,23.776884]
[1731499332325,27.03907293,207.84,207.75,10.1082]
[1731499333148,22.22757293,207.84,207.75,10.1082]
[1731499333353,27.03907293,207.84,207.75,10.1082]
[1731499334426,22.22757293,207.84,207.75,10.1082]
[1731499334630,27.03857293,207.86,207.75,10.1082]
[1731499334832,22.22757293,207.84,207.75,10.1082]
[1731499335049,4.811,207.86,207.75,10.1082]
[1731499335050,22.22757293,207.82,207.75,10.1082]
[1731499336965,22.22757293,207.84,207.75,10.1082]
[1731499337260,22.22757293,207.8,207.73,9.4315]
[1731499337426,22.22757293,207.78,207.73,6.5433]
[1731499338432,22.22757293,207.78,207.73,9.4316]
[1731499338643,22.22757293,207.8,207.73,16.6525]
[1731499340335,27.03957293,207.82,207.73,16.6525]
[1731499341645,22.22757293,207.8,207.73,16.6525]
[1731499341848,22.22757293,207.78,207.73,13.7642]
[1731499342947,22.22757293,207.78,207.73,16.6525]
[1731499343552,4.8126,207.79,207.73,16.6525]
[1731499344962,22.22757293,207.78,207.73,13.7642]
[1731499345533,22.22757293,207.78,207.73,16.6525]
[1731499346059,22.22757293,207.8,207.73,16.6525]
[1731499346755,13.88220373,207.79,207.73,16.6525]
[1731499347462,18.69470373,207.79,207.73,16.6525]
[1731499348157,13.88220373,207.81,207.73,16.6525]
[1731499348334,13.88220373,207.85,207.74,43.776884]
[1731499349664,13.88220373,207.85,207.75,10.1082]
[1731499349852,13.88220373,207.85,207.76,6.063]
[1731499350967,13.88220373,207.85,207.77,10.1073]
[1731499351459,13.88220373,207.85,207.78,15.3109]
[1731499351651,4.8104,207.89,207.8,6.063]
[1731499351652,13.88220373,207.89,207.8,6.063]
[1731499352763,13.88220373,207.9,207.8,6.063]
[1731499352969,13.88220373,207.9,207.81,10.1053]
[1731499354045,18.69230373,207.9,207.81,10.1053]
[1731499355659,13.88220373,207.92,207.81,10.1053]
[1731499355861,13.88220373,207.92,207.82,6.5773]
[1731499356363,13.88220373,207.91,207.82,6.5773]
[1731499356855,18.69200373,207.91,207.83,10.1043]
[1731499357046,0.12549,207.9,207.83,10.1043]
[1731499357250,18.69200373,207.91,207.83,7.2174]
[1731499357251,13.88220373,207.88,207.83,7.2174]
[1731499358039,0.12549,207.87,207.82,6.5773]
[1731499358244,13.88220373,207.83,207.82,6.5773]
[1731499358455,14.00769373,207.83,207.82,6.5773]
[1731499358964,18.81929373,207.83,207.82,6.5773]
[1731499359667,0.12549,207.82,207.78,15.3109]
[1731499359967,13.88220373,207.8,207.78,15.3109]
[1731499360470,13.88220373,207.81,207.78,15.3109]
[1731499360941,13.88220373,207.79,207.77,6.2902]
[1731499361141,14.00769373,207.78,207.77,6.2902]
[1731499361341,13.88220373,207.78,207.77,6.2902]
[1731499362569,13.88220373,207.78,207.73,6.383]
[1731499362570,20.0,207.77,207.73,6.383]
[1731499362775,0.12549,207.75,207.73,6.383]
[1731499363102,18.69590373,207.74,207.73,6.383]
[1731499363275,13.88220373,207.74,207.73,6.383]
[1731499363672,18.69590373,207.74,207.73,6.383]
[1731499364072,18.69590373,207.74,207.68,6.383]
[1731499364073,20.12549,207.73,207.68,6.383]
[1731499364277,14.00769373,207.69,207.68,2.92810171]
[1731499364490,14.00769373,207.69,207.64,2.8895]
[1731499364674,13.88220373,207.68,207.64,2.8895]
[1731499365271,14.00769373,207.69,207.63,7.2243]
[1731499365472,13.88220373,207.67,207.63,7.2243]
[1731499366396,13.88220373,207.65,207.61,15.0284]
[1731499366595,13.88220373,207.65,207.61,17.9183]
[1731499366823,13.88220373,207.66,207.61,17.9183]
[1731499367388,13.88220373,207.68,207.62,6.0754]
[1731499367685,13.88220373,207.68,207.62,8.9651]
[1731499368381,16.0526008,207.69,207.62,16.1898]
[1731499368583,13.88220373,207.69,207.62,16.1898]
[1731499368787,4.8144,207.71,207.62,16.1898]
[1731499368788,13.88220373,207.7,207.62,16.1898]
[1731499369386,13.88220373,207.73,207.63,23.776884]
[1731499369691,13.88220373,207.73,207.64,10.1136]
[1731499369886,18.69590373,207.74,207.64,10.1136]
[1731499370092,13.88220373,207.72,207.64,10.1136]
[1731499370403,13.88220373,207.67,207.62,8.9651]
[1731499370612,13.88220373,207.69,207.62,8.9651]
[1731499371814,0.12549,207.73,207.62,8.9651]
[1731499371815,13.88220373,207.7,207.62,16.1898]
[1731499372902,18.69650373,207.72,207.62,16.1898]
[1731499374708,0.12549,207.75,207.62,16.1898]
[1731499374709,13.88220373,207.7,207.62,16.1898]
[1731499375710,20.0,207.75,207.63,23.776884]
[1731499375888,13.88220373,207.72,207.63,23.776884]
[1731499377301,18.69640373,207.72,207.64,10.1136]
[1731499379713,13.88220373,207.72,207.64,10.1136]
[1731499380588,18.69650373,207.72,207.64,10.1136]
[1731499382413,13.88220373,207.68,207.64,7.224]
[1731499382620,13.88220373,207.66,207.62,6.0754]
[1731499382810,4.8132,207.76,207.62,8.9652]
[1731499383001,13.88220373,207.74,207.62,16.1899]
[1731499383706,13.88220373,207.72,207.62,16.1899]
[1731499383909,13.88220373,207.72,207.63,23.776884]
[1731499384414,18.69640373,207.72,207.64,10.1136]
[1731499385518,4.8134,207.75,207.65,23.776884]
[1731499385819,13.88220373,207.78,207.67,39.633384]
[1731499385989,13.88220373,207.8,207.69,23.776884]
[1731499386595,13.88220373,207.78,207.69,23.776884]
[1731499386824,13.88220373,207.78,207.68,23.776884]
[1731499387415,13.88220373,207.8,207.7,23.776884]
[1731499387604,20.0,207.79,207.7,23.776884]
[1731499387811,18.69470373,207.8,207.7,23.776884]
[1731499388017,13.88220373,207.82,207.72,23.776884]
[1731499389226,20.0,207.81,207.73,25.4235]
[1731499391124,20.0,207.83,207.73,25.4235]
[1731499391518,13.88220373,207.84,207.73,25.4235]
[1731499392228,4.8116,207.83,207.73,25.4235]
[1731499392723,24.8116,207.83,207.73,25.4235]
[1731499394430,13.88220373,207.84,207.75,6.413]
[1731499395420,4.8113,207.85,207.76,10.1077]
[1731499396324,24.1477,207.92,207.77,45.685584]
[1731499396325,13.88220373,207.89,207.77,45.685584]
[1731499396507,4.8095,207.92,207.81,23.776884]
[1731499396925,18.69050373,207.98,207.85,23.776884]
[1731499397235,30.0,208.0,207.88,43.776884]
[1731499397236,43.88220373,208.0,207.88,43.776884]
[1731499397403,30.0,208.0,207.91,15.7042]
[1731499397599,0.12549,207.99,207.91,15.7042]
[1731499397915,13.88220373,207.98,207.91,15.7042]
[1731499398124,43.88220373,208.0,207.91,15.7042]
[1731499399137,43.88220373,208.0,207.92,10.1]
[1731499399431,30.0,208.0,207.93,23.776884]
[1731499399606,30.0,208.0,207.92,10.1]
[1731499400028,13.88220373,207.98,207.92,7.2143]
[1731499400329,13.88220373,207.96,207.91,15.7042]
[1731499400528,13.88220373,207.98,207.91,18.59]
[1731499400741,0.12549,207.99,207.91,18.59]
[1731499400742,14.00769373,207.99,207.91,18.59]
[1731499400940,43.88220373,208.0,207.91,25.8046]
[1731499401123,13.88220373,207.98,207.91,25.8046]
[1731499401543,13.88220373,207.96,207.91,15.7042]
[1731499402136,13.88220373,207.92,207.89,6.446]
[1731499402723,13.88220373,207.9,207.89,6.446]
[1731499403231,18.69220373,207.9,207.85,15.31]
[1731499404632,18.69220373,207.9,207.84,6.0097]
[1731499405516,13.88220373,207.86,207.84,6.0097]
[1731499406331,0.12549,207.84,207.78,6.0988]
[1731499406650,0.12549,207.84,207.74,7.2202]
[1731499406651,13.88220373,207.79,207.73,21.7457]
[1731499406954,0.12549,207.84,207.73,21.7457]
[1731499406955,13.88220373,207.77,207.73,6.0988]
[1731499407239,13.88220373,207.75,207.73,6.0988]
[1731499407425,18.69580373,207.75,207.73,6.0988]
[1731499407617,20.0,207.74,207.68,21.7457]
[1731499407821,13.88220373,207.71,207.68,21.7457]
[1731499408325,13.88220373,207.75,207.68,24.6346]
[1731499408522,13.88220373,207.77,207.68,31.8572]
[1731499408931,22.21220394,207.78,207.68,31.8572]
[1731499409453,22.21220394,207.74,207.68,28.9683]
[1731499409820,7.00022836,207.82,207.69,23.776884]
[1731499410021,22.21220394,207.79,207.69,23.776884]
[1731499410624,22.21220394,207.77,207.69,23.776884]
[1731499411050,22.21220394,207.75,207.68,28.9683]
[1731499411541,22.21220394,207.77,207.68,31.8573]
[1731499411724,0.12549,207.76,207.68,31.8573]
[1731499411924,22.21220394,207.75,207.68,31.8573]
[1731499412149,22.21220394,207.73,207.68,31.8573]
[1731499412543,22.21220394,207.75,207.68,31.8573]
[1731499413047,22.21220394,207.79,207.68,31.8573]
[1731499413254,22.21220394,207.79,207.69,23.776884]
[1731499414127,22.21220394,207.81,207.69,23.776884]
[1731499414827,22.21220394,207.81,207.71,23.776884]
[1731499415625,27.02430394,207.81,207.71,23.776884]
[1731499415826,22.21220394,207.77,207.7,10.1106]
[1731499416440,22.21220394,207.75,207.68,24.6346]
[1731499416924,27.02580394,207.75,207.68,21.7457]
[1731499417664,22.21220394,207.73,207.68,21.7457]
[1731499417825,0.12549,207.7,207.63,6.6291]
[1731499418154,22.21220394,207.69,207.63,6.6291]
[1731499418358,22.21220394,207.71,207.63,16.7431]
[1731499418652,22.21220394,207.78,207.63,45.6405]
[1731499418823,27.02500394,207.78,207.63,45.6405]
[1731499419150,27.02500394,207.78,207.65,23.776884]
[1731499419453,27.02500394,207.78,207.67,23.776884]
[1731499420028,27.02500394,207.78,207.65,23.776884]
[1731499420447,27.02500394,207.78,207.66,20.0]
[1731499420750,27.02500394,207.78,207.67,23.776884]
[1731499420952,22.21220394,207.76,207.68,10.1116]
[1731499421257,22.21220394,207.74,207.68,10.1116]
[1731499421758,22.21220394,207.72,207.64,10.1135]
[1731499422645,20.0,207.73,207.64,10.1135]
[1731499422849,4.8135,207.75,207.64,10.1135]
[1731499425937,27.02610394,207.74,207.65,23.776884]
[1731499426759,22.21220394,207.7,207.64,10.1133]
[1731499427541,22.21220394,207.7,207.64,7.2239]
[1731499428356,22.21220394,207.7,207.6,7.2253]
[1731499428555,22.21220394,207.68,207.6,7.2253]
[1731499429469,22.21220394,207.7,207.6,7.2253]
[1731499429754,22.21220394,207.7,207.61,23.776884]
[1731499430134,22.21220394,207.72,207.61,23.776884]
[1731499430548,22.21220394,207.72,207.63,23.776884]
[1731499430740,22.21220394,207.72,207.65,23.776884]
[1731499430948,2.16964348,207.77,207.66,6.5538]
[1731499430949,22.21220394,207.74,207.66,6.5538]
[1731499431148,4.8136,207.75,207.66,6.5538]
[1731499431149,22.21220394,207.7,207.66,6.5538]
[1731499432546,22.21220394,207.72,207.66,6.5538]
[1731499432856,4.8132,207.77,207.66,6.5538]
[1731499432857,13.88798726,207.74,207.67,10.112]
[1731499433167,13.88798726,207.76,207.67,10.112]
[1731499433343,13.88798726,207.74,207.67,10.112]
[1731499433544,13.88798726,207.78,207.68,23.776884]
[1731499433752,13.88798726,207.76,207.67,10.112]
[1731499435837,13.88798726,207.78,207.68,23.776884]
[1731499436363,0.12549,207.77,207.67,10.112]
[1731499436737,22.21249475,207.79,207.68,23.776884]
[1731499436935,20.0,207.78,207.7,23.776884]
[1731499437140,22.21249475,207.79,207.7,23.776884]
[1731499437564,22.21249475,207.81,207.72,23.776884]
[1731499437739,22.21249475,207.83,207.73,6.6493]
[1731499437942,22.21249475,207.83,207.74,23.776884]
[1731499438546,22.21249475,207.87,207.76,23.776884]
[1731499438758,12.0235,207.93,207.76,23.776884]
[1731499438759,27.02269475,207.89,207.76,23.776884]
[1731499439069,27.02269475,207.89,207.78,23.776884]
[1731499440068,27.02269475,207.89,207.79,8.4218]
[1731499440453,22.21249475,207.89,207.81,21.6725]
[1731499440971,22.21249475,207.83,207.81,6.3462]
[1731499441470,0.12549,207.82,207.76,6.1541]
[1731499441777,22.21249475,207.79,207.76,6.1541]
[1731499441948,0.12549,207.86,207.76,6.1541]
[1731499441949,22.21249475,207.77,207.76,6.1541]
[1731499442544,4.8129,207.78,207.76,6.1541]
[1731499443874,22.21249475,207.77,207.71,6.4324]
[1731499444071,22.21249475,207.75,207.71,6.4324]
[1731499445850,22.21249475,207.73,207.71,6.4324]
[1731499446069,22.21249475,207.73,207.66,6.6536]
[1731499446373,22.21249475,207.77,207.66,6.6536]
[1731499446694,22.21249475,207.81,207.66,6.7536]
[1731499447180,27.02459475,207.81,207.67,20.0]
[1731499447364,27.02459475,207.81,207.68,23.776884]
[1731499447673,22.21249475,207.79,207.7,23.776884]
[1731499447870,4.8111,207.85,207.71,6.7401]
[1731499448052,22.21249475,207.82,207.72,23.776884]
[1731499448456,22.21249475,207.82,207.71,6.7401]
[1731499448457,20.0,207.79,207.71,6.7401]
[1731499448782,20.0,207.81,207.72,23.776884]
[1731499449069,22.21249475,207.82,207.72,23.776884]
[1731499449407,20.0,207.83,207.74,23.776884]
[1731499449875,20.0,207.83,207.75,15.1589]
[1731499450062,22.21249475,207.84,207.76,6.7384]
[1731499450258,27.02389475,207.84,207.76,6.7384]
[1731499450873,22.21249475,207.82,207.75,15.1589]
[1731499451072,22.21249475,207.8,207.75,15.1589]
[1731499452667,4.8122,207.81,207.75,17.0842]
[1731499452871,22.21249475,207.84,207.75,21.8976]
[1731499453056,4.8111,207.85,207.75,21.8976]
[1731499453772,22.33798475,207.86,207.75,21.8976]
[1731499453773,0.12549,207.86,207.76,23.776884]
[1731499454271,0.12549,207.86,207.77,6.7382]
[1731499454577,0.12549,207.86,207.78,23.776884]
[1731499455566,0.12549,207.86,207.79,6.7375]
[1731499455773,0.12549,207.86,207.8,29.959284]
[1731499456588,0.12549,207.86,207.82,23.776884]
[1731499457976,0.12549,207.86,207.83,4.8116]
[1731499459578,0.12549,207.86,207.84,23.776884]
[1731499459883,0.12549,207.86,207.85,15.5109]
[1731499460400,22.18631434,207.95,207.85,15.5109]
[1731499460560,30.0,208.0,207.85,15.5109]
[1731499460561,22.18631434,207.99,207.88,23.776884]
[1731499460882,30.0,208.0,207.88,23.776884]
[1731499461058,22.18631434,207.99,207.89,6.7342]
[1731499461458,22.18631434,207.97,207.89,6.7342]
[1731499461658,34.8077,208.0,207.86,8.0443]
[1731499461659,22.18631434,207.93,207.86,8.0443]
[1731499462300,22.18631434,207.91,207.86,6.12]
[1731499463174,4.81,207.9,207.86,6.12]
[1731499463791,22.18631434,207.89,207.86,6.12]
[1731499464163,22.18631434,207.89,207.82,1.9246]
[1731499464364,22.18631434,207.89,207.82,6.7364]
[1731499465278,26.99661434,207.89,207.82,6.7364]
[1731499465587,22.18631434,207.87,207.81,6.4556]
[1731499465974,22.18631434,207.87,207.81,8.3804]
[1731499466894,22.18631434,207.83,207.81,6.4556]
[1731499467185,26.99801434,207.83,207.81,6.4556]
[1731499467397,26.99801434,207.83,207.74,4.8136]
[1731499467398,20.0,207.82,207.76,6.1235]
[1731499467687,22.18631434,207.8,207.76,6.1235]
[1731499469695,4.8122,207.81,207.76,6.1235]
[1731499469899,4.8122,207.81,207.65,9.6315]
[1731499469900,20.0,207.77,207.69,22.16]
[1731499470107,22.18631434,207.73,207.69,22.16]
[1731499470978,22.18631434,207.73,207.69,24.0859]
[1731499471172,22.18631434,207.75,207.69,28.9007]
[1731499471379,22.18631434,207.77,207.69,28.9007]
[1731499472074,22.18631434,207.77,207.7,23.776884]
[1731499472397,22.18631434,207.77,207.69,28.9007]
[1731499472398,22.18631434,207.75,207.69,28.9007]
[1731499472592,22.18631434,207.75,207.61,14.39378701]
[1731499472593,42.18631434,207.7,207.61,4.76048701]
[1731499472792,0.6793,207.73,207.35,6.5207]
[1731499472793,0.1,207.5,207.35,6.5207]
[1731499472996,22.18631434,207.37,207.35,6.910421]
[1731499473309,22.18631434,207.37,207.35,6.5207]
[1731499473981,22.18631434,207.37,207.3,0.4769093]
[1731499474183,22.18631434,207.35,207.3,0.4769093]
[1731499474700,22.18631434,207.33,207.3,0.4769093]
[1731499475285,30.0,207.32,207.3,0.4769093]
[1731499475596,22.18631434,207.31,207.3,0.4769093]
[1731499475814,30.0,207.32,207.3,0.4769093]
[1731499476011,22.18631434,207.33,207.3,0.4769093]
[1731499477290,22.18631434,207.31,207.3,0.4769093]
[1731499478409,22.18631434,207.33,207.3,0.4769093]
[1731499478614,22.18631434,207.35,207.3,0.4769093]
[1731499478989,22.18631434,207.33,207.3,0.4769093]
[1731499479515,22.18631434,207.34,207.3,0.4769093]
[1731499479707,22.18631434,207.33,207.3,0.4769093]
[1731499479904,22.18631434,207.32,207.3,0.4769093]
[1731499480311,22.18631434,207.4,207.3,0.4769093]
[1731499480312,22.18631434,207.35,207.3,0.4769093]
[1731499480525,22.18631434,207.36,207.3,0.4769093]
[1731499480895,22.18631434,207.35,207.3,0.4769093]
[1731499481202,22.18631434,207.4,207.3,0.4769093]
[1731499481203,22.18631434,207.34,207.3,0.4769093]
[1731499481407,22.18631434,207.42,207.31,23.776884]
[1731499481805,22.18631434,207.4,207.31,23.776884]
[1731499482011,22.18631434,207.39,207.31,23.776884]
[1731499482411,22.18631434,207.37,207.31,23.776884]
[1731499482795,22.18631434,207.4,207.31,23.776884]
[1731499483113,20.0,207.43,207.32,23.776884]
[1731499483300,22.18631434,207.44,207.32,23.776884]
[1731499483613,22.18631434,207.45,207.32,23.776884]
[1731499484314,22.18631434,207.45,207.31,1.9293]
[1731499484315,12.1387,207.67,207.52,23.776884]
[1731499484519,22.18631434,207.64,207.52,23.776884]
[1731499484818,22.18631434,207.64,207.52,30.159884]
[1731499485226,27.00181434,207.66,207.52,30.159884]
[1731499485428,22.18631434,207.64,207.52,30.159884]
[1731499485610,0.12549,207.63,207.52,30.159884]
[1731499485813,4.8164,207.62,207.52,30.159884]
[1731499486429,27.00271434,207.62,207.52,30.159884]
[1731499488726,20.0,207.59,207.52,6.383]
[1731499488913,22.18631434,207.58,207.52,6.383]
[1731499489429,22.18631434,207.59,207.52,6.383]
[1731499489610,4.8169,207.6,207.53,23.776884]
[1731499490828,22.18631434,207.64,207.53,23.776884]
[1731499491127,24.3610002,207.7,207.53,25.704184]
[1731499491128,22.18631434,207.7,207.53,25.704184]
[1731499491312,22.18631434,207.7,207.54,0.12549]
[1731499492107,27.00041434,207.72,207.55,23.876884]
[1731499492314,27.00041434,207.72,207.54,20.12549]
[1731499492315,0.12549,207.71,207.57,23.776884]
[1731499493130,22.18631434,207.7,207.57,23.776884]
[1731499493405,12.035,207.73,207.57,23.776884]
[1731499493728,4.8141,207.72,207.57,30.521384]
[1731499495223,24.8141,207.72,207.6,23.776884]
[1731499496815,22.18631434,207.71,207.6,23.776884]
[1731499497129,22.18631434,207.69,207.6,23.776884]
[1731499497334,22.18631434,207.71,207.6,23.776884]
[1731499498132,4.8141,207.72,207.6,23.776884]
[1731499498341,24.8141,207.72,207.6,25.703584]
[1731499498815,22.18631434,207.71,207.6,25.703584]
[1731499499825,4.8146,207.7,207.6,25.703584]
[1731499500408,4.8146,207.7,207.6,23.776884]
[1731499500610,23.776884,207.59,207.43,6.5138]
[1731499500809,20.0,207.6,207.43,13.263]
[1731499500810,22.18631434,207.57,207.43,13.263]
[1731499501233,22.18631434,207.59,207.43,13.363]
[1731499501731,4.8174,207.58,207.44,0.12549]
[1731499502026,4.8174,207.58,207.43,13.463]
[1731499502235,22.18631434,207.57,207.43,13.263]
[1731499502812,22.18631434,207.57,207.44,20.12549]
[1731499503014,22.18631434,207.57,207.44,20.0]
[1731499503329,4.8178,207.56,207.46,0.12549]
[1731499503533,4.8178,207.56,207.46,23.902374]
[1731499504317,22.18631434,207.55,207.45,4.8204]
[1731499504639,22.18631434,207.55,207.45,6.7485]
[1731499505016,22.18631434,207.55,207.45,4.8204]
[1731499505225,22.18631434,207.53,207.43,8.442]
[1731499505719,4.8178,207.56,207.43,8.442]
[1731499505720,27.00411434,207.56,207.43,13.2629]
[1731499505927,20.0,207.55,207.43,13.2629]
[1731499506419,27.00341434,207.59,207.44,0.12549]
[1731499506615,4.8171,207.59,207.44,0.12549]
[1731499507028,4.8171,207.59,207.44,23.902374]
[1731499507431,4.8171,207.59,207.45,0.1]
[1731499507736,4.8171,207.59,207.44,24.002374]
[1731499507737,4.816,207.64,207.5,0.1]
[1731499507938,4.816,207.64,207.52,23.902374]
[1731499508743,4.816,207.64,207.53,6.7459]
[1731499508923,4.816,207.64,207.54,23.776884]
[1731499510015,4.816,207.64,207.54,25.704084]
[1731499510217,4.8157,207.66,207.57,23.776884]
[1731499510422,27.00041434,207.72,207.58,0.12549]
[1731499510618,4.8141,207.72,207.58,0.12549]
[1731499510829,27.00041434,207.72,207.58,0.12549]
[1731499511342,4.8141,207.72,207.58,0.12549]
[1731499511545,4.8141,207.72,207.6,23.902374]
[1731499511838,22.18631434,207.68,207.6,23.776884]
[1731499512044,22.18631434,207.7,207.6,23.776884]
[1731499512540,4.8148,207.69,207.61,1.9266]
[1731499513022,4.8148,207.69,207.62,23.776884]
[1731499515028,4.8148,207.69,207.6,23.776884]
[1731499515344,4.8148,207.69,207.6,30.520484]
[1731499515538,4.8148,207.69,207.61,0.12549]
[1731499516043,4.8148,207.69,207.6,30.520484]
[1731499518525,4.8148,207.69,207.61,6.86879]
[1731499518852,4.8136,207.75,207.65,23.902374]
[1731499519031,22.18631434,207.74,207.65,23.776884]
[1731499520631,22.18631434,207.74,207.65,30.518784]
[1731499520925,22.18631434,207.76,207.67,23.776884]
[1731499521440,6.73320072,207.84,207.68,0.12549]
[1731499521441,22.18631434,207.82,207.68,0.12549]
[1731499522851,22.18631434,207.89,207.72,24.002374]
[1731499523030,4.81,207.9,207.76,0.12549]
[1731499524044,4.81,207.9,207.77,6.7382]
[1731499524240,22.18631434,207.89,207.77,6.7382]
[1731499524542,22.18631434,207.89,207.78,23.776884]
[1731499525350,4.8104,207.88,207.78,25.701884]
[1731499526358,4.8104,207.88,207.78,30.514584]
[1731499527231,22.18631434,207.91,207.79,0.12549]
[1731499527427,4.81,207.9,207.81,23.776884]
[1731499528732,4.81,207.9,207.81,25.701684]
[1731499532151,2.18502057,207.93,207.82,6.1136]
[1731499532353,4.8089,207.95,207.84,23.902374]
[1731499532854,22.18631434,207.99,207.84,23.902374]
[1731499532855,4.8081,207.98,207.84,23.902374]
[1731499533231,4.8081,207.98,207.84,24.002374]
[1731499533941,30.0,208.0,207.84,24.102374]
[1731499534142,34.8077,208.0,207.86,0.1]
[1731499534352,34.8077,208.0,207.88,23.902374]
[1731499535249,34.8077,208.0,207.9,23.776884]
[1731499536454,34.8077,208.0,207.92,23.776884]
[1731499537259,34.8077,208.0,207.94,23.776884]
[1731499537438,30.0,208.0,207.96,23.776884]
[1731499538134,30.0,208.0,207.97,0.12549]
[1731499538341,30.0,208.0,207.99,23.776884]
[1731499538743,6.6668,208.0,207.99,30.094474]
[1731499538949,0.4769093,208.04,208.0,0.12549]
[1731499539349,26.98981434,208.18,208.08,23.776884]
[1731499540751,20.0,208.17,208.08,23.776884]
[1731499541461,4.8039,208.16,208.08,23.776884]
[1731499542157,26.99021434,208.16,208.07,23.776884]
[1731499542861,26.99021434,208.16,208.05,23.776884]
[1731499543059,26.99021434,208.16,208.05,25.699384]
[1731499543842,20.0,208.17,208.05,30.505884]
[1731499544050,20.0,208.17,208.06,0.12549]
[1731499544251,22.18631434,208.18,208.06,0.12549]
[1731499545062,4.8038,208.17,208.08,23.902374]
[1731499545557,22.18631434,208.16,208.08,23.776884]
[1731499546953,4.8042,208.15,208.08,23.776884]
[1731499547449,22.18631434,208.18,208.09,0.12549]
[1731499547647,2.18882335,208.21,208.09,0.12549]
[1731499547648,4.8034,208.19,208.09,0.12549]
[1731499548845,4.8034,208.19,208.11,23.776884]
[1731499549568,4.8034,208.19,208.13,23.776884]
[1731499550652,22.18631434,208.16,208.12,6.5722]
[1731499551072,20.0,208.13,208.07,6.2606]
[1731499551245,22.18631434,208.1,208.07,6.2606]
[1731499551447,22.18631434,208.1,208.02,22.2777]
[1731499552568,4.8056,208.09,208.02,24.2005]
[1731499552867,4.8056,208.09,208.02,29.0077]
[1731499553264,4.8056,208.09,208.03,23.776884]
[1731499554263,22.18631434,208.11,208.03,23.776884]
[1731499554497,22.18631434,208.1,208.03,23.776884]
[1731499554772,22.18631434,208.1,208.03,25.699584]
[1731499554962,26.99141434,208.11,208.03,25.699584]
[1731499556858,22.18631434,208.12,208.03,25.699584]
[1731499557366,22.18631434,208.11,208.03,25.699584]
[1731499557548,22.18631434,208.12,208.03,23.776884]
[1731499557749,42.18631434,208.12,208.03,23.776884]
[1731499558577,42.18631434,208.12,208.03,25.699584]
[1731499559269,4.8051,208.11,208.03,25.699584]
[1731499559778,22.18631434,208.1,208.03,23.776884]
[1731499560168,22.18631434,208.08,208.02,6.2606]